[Event "Titled Tuesday Blitz November 29 Late 2022"]
[White "Dylag, Emilia"]
[Black "Cappelletto, Joshuaede"]
[WhiteFideId "21805172"]
[BlackFideId "2824383"]
[WhiteElo "1878"]
[BlackElo "2237"]
[Result "1-0"]
[Round "03"]
[TimeControl "180+1"]
[Date "2022.11.30"]
[WhiteClock "0:01:48"]
[BlackClock "0:01:41"]

1. d4 {[%clk 0:03:00]}  Nf6 {[%clk 0:02:59]} 2. c4 {[%clk 0:02:52]}  b6 {[%clk 0:02:59]} 3. g3 {[%clk 0:02:48]}  Bb7 {[%clk 0:03:00]} 4. Nf3 {[%clk 0:02:49]}  g6 {[%clk 0:03:00]} 5. Bg2 {[%clk 0:02:49]}  Bg7 {[%clk 0:03:00]} 6. O-O {[%clk 0:02:49]}  O-O {[%clk 0:03:01]} 7. Nc3 {[%clk 0:02:46]}  c5 {[%clk 0:02:58]} 8. d5 {[%clk 0:02:45]}  e6 {[%clk 0:02:58]} 9. e4 {[%clk 0:02:44]}  exd5 {[%clk 0:02:58]} 10. cxd5 {[%clk 0:02:42]}  d6 {[%clk 0:02:58]} 11. Bf4 {[%clk 0:02:34]}  Re8 {[%clk 0:02:56]} 12. Re1 {[%clk 0:02:34]}  a6 {[%clk 0:02:51]} 13. e5 {[%clk 0:02:26]}  dxe5 {[%clk 0:02:44]} 14. Nxe5 {[%clk 0:02:25]}  Nh5 {[%clk 0:02:44]} 15. Nc6 {[%clk 0:02:20]}  Bxc6 {[%clk 0:02:26]} 16. dxc6 {[%clk 0:02:20]}  Rxe1+ {[%clk 0:02:24]} 17. Qxe1 {[%clk 0:02:20]}  Nxf4 {[%clk 0:02:24]} 18. gxf4 {[%clk 0:02:04]}  Qc7 {[%clk 0:02:14]} 19. Qe8+ {[%clk 0:01:59]}  Bf8 {[%clk 0:02:14]} 20. Nd5 {[%clk 0:01:55]}  Qxc6 {[%clk 0:01:41]} 21. Ne7+ {[%clk 0:01:48]} 1-0


[Site "https://www.chess.com"]

[Event "Titled Tuesday Blitz November 29 Late 2022"]
[White "Firouzja, Alireza"]
[Black "Pakleza, Zbigniew"]
[WhiteFideId "12573981"]
[BlackFideId "1119290"]
[WhiteElo "3145"]
[BlackElo "2809"]
[Result "0-1"]
[Round "03"]
[TimeControl "180+1"]
[Date "2022.11.30"]
[WhiteClock "0:00:02"]
[BlackClock "0:00:02"]

1. d4 {[%clk 0:02:59]}  d5 {[%clk 0:02:59]} 2. Bg5 {[%clk 0:02:59]}  h6 {[%clk 0:02:57]} 3. Bh4 {[%clk 0:02:58]}  c6 {[%clk 0:02:56]} 4. Nf3 {[%clk 0:02:58]}  Qb6 {[%clk 0:02:56]} 5. Qc1 {[%clk 0:02:57]}  Bf5 {[%clk 0:02:55]} 6. e3 {[%clk 0:02:55]}  Nd7 {[%clk 0:02:51]} 7. c4 {[%clk 0:02:52]}  e6 {[%clk 0:02:48]} 8. Nc3 {[%clk 0:02:52]}  Ngf6 {[%clk 0:02:47]} 9. Be2 {[%clk 0:02:48]}  Be7 {[%clk 0:02:45]} 10. O-O {[%clk 0:02:48]}  O-O {[%clk 0:02:45]} 11. c5 {[%clk 0:02:47]}  Qd8 {[%clk 0:02:44]} 12. b4 {[%clk 0:02:46]}  a6 {[%clk 0:02:44]} 13. Nd2 {[%clk 0:02:37]}  e5 {[%clk 0:02:31]} 14. Nb3 {[%clk 0:02:35]}  Ne4 {[%clk 0:02:20]} 15. Nxe4 {[%clk 0:02:33]}  Bxe4 {[%clk 0:02:18]} 16. Bg3 {[%clk 0:02:34]}  Bf6 {[%clk 0:02:13]} 17. Qd2 {[%clk 0:02:33]}  Re8 {[%clk 0:02:03]} 18. Bg4 {[%clk 0:02:33]}  Nf8 {[%clk 0:01:51]} 19. Na5 {[%clk 0:02:27]}  Rb8 {[%clk 0:01:18]} 20. Rad1 {[%clk 0:02:17]}  Bg6 {[%clk 0:01:12]} 21. dxe5 {[%clk 0:02:06]}  Bxe5 {[%clk 0:01:12]} 22. f4 {[%clk 0:01:41]}  Bc7 {[%clk 0:01:11]} 23. f5 {[%clk 0:01:41]}  Bh7 {[%clk 0:01:07]} 24. f6 {[%clk 0:01:42]}  Bxg3 {[%clk 0:00:50]} 25. hxg3 {[%clk 0:01:43]}  gxf6 {[%clk 0:00:40]} 26. Bf5 {[%clk 0:01:43]}  Bg6 {[%clk 0:00:33]} 27. Nb3 {[%clk 0:01:40]}  Qe7 {[%clk 0:00:32]} 28. Rde1 {[%clk 0:01:40]}  Ne6 {[%clk 0:00:30]} 29. e4 {[%clk 0:01:38]}  dxe4 {[%clk 0:00:30]} 30. Qxh6 {[%clk 0:01:37]}  Qf8 {[%clk 0:00:25]} 31. Qh4 {[%clk 0:01:31]}  Ng5 {[%clk 0:00:20]} 32. Nd2 {[%clk 0:01:28]}  e3 {[%clk 0:00:19]} 33. Nc4 {[%clk 0:01:28]}  Bxf5 {[%clk 0:00:16]} 34. Rxf5 {[%clk 0:01:28]}  Re4 {[%clk 0:00:16]} 35. Rf4 {[%clk 0:01:28]}  Re6 {[%clk 0:00:10]} 36. Nd6 {[%clk 0:01:19]}  b6 {[%clk 0:00:09]} 37. Qh5 {[%clk 0:01:14]}  bxc5 {[%clk 0:00:08]} 38. Rh4 {[%clk 0:01:14]}  Qg7 {[%clk 0:00:08]} 39. Nf5 {[%clk 0:01:15]}  Qh7 {[%clk 0:00:05]} 40. Nh6+ {[%clk 0:00:42]}  Kf8 {[%clk 0:00:05]} 41. Qg4 {[%clk 0:00:33]}  Rxb4 {[%clk 0:00:04]} 42. Qh5 {[%clk 0:00:24]}  Qg6 {[%clk 0:00:05]} 43. Qd1 {[%clk 0:00:03]}  Rxh4 {[%clk 0:00:04]} 44. gxh4 {[%clk 0:00:04]}  Qxh6 {[%clk 0:00:05]} 45. hxg5 {[%clk 0:00:04]}  Qxg5 {[%clk 0:00:06]} 46. Qd3 {[%clk 0:00:04]}  f5 {[%clk 0:00:04]} 47. Qxa6 {[%clk 0:00:03]}  f4 {[%clk 0:00:04]} 48. Qe2 {[%clk 0:00:03]}  c4 {[%clk 0:00:03]} 49. a4 {[%clk 0:00:02]}  c3 {[%clk 0:00:04]} 50. a5 {[%clk 0:00:02]}  Qxa5 {[%clk 0:00:03]} 51. Rf1 {[%clk 0:00:02]}  Qg5 {[%clk 0:00:03]} 52. Qc4 {[%clk 0:00:02]}  e2 {[%clk 0:00:02]} 53. Qb4+ {[%clk 0:00:02]}  Kg8 {[%clk 0:00:02]} 54. Re1 {[%clk 0:00:02]}  f3 {[%clk 0:00:02]} 55. Qb8+ {[%clk 0:00:02]}  Kg7 {[%clk 0:00:02]} 0-1


[Site "https://www.chess.com"]

[Event "Titled Tuesday Blitz November 29 Late 2022"]
[White "Floresvillar Gonzalez, Luis Migu"]
[Black "Malka, Samuel"]
[WhiteFideId "5100542"]
[BlackFideId "20643675"]
[WhiteElo "2040"]
[BlackElo "2415"]
[Result "0-1"]
[Round "03"]
[TimeControl "180+1"]
[Date "2022.11.30"]
[WhiteClock "0:00:54"]
[BlackClock "0:00:55"]

1. c4 {[%clk 0:03:00]}  g6 {[%clk 0:02:59]} 2. Nc3 {[%clk 0:03:01]}  Bg7 {[%clk 0:02:59]} 3. g3 {[%clk 0:03:01]}  c5 {[%clk 0:02:59]} 4. Bg2 {[%clk 0:03:02]}  Nc6 {[%clk 0:03:00]} 5. h4 {[%clk 0:03:02]}  h6 {[%clk 0:02:58]} 6. d3 {[%clk 0:03:01]}  Nf6 {[%clk 0:02:46]} 7. Nf3 {[%clk 0:03:00]}  d5 {[%clk 0:02:40]} 8. cxd5 {[%clk 0:02:59]}  Nxd5 {[%clk 0:02:40]} 9. Bd2 {[%clk 0:02:58]}  Nc7 {[%clk 0:02:15]} 10. O-O {[%clk 0:02:56]}  O-O {[%clk 0:02:12]} 11. Rc1 {[%clk 0:02:56]}  Bd7 {[%clk 0:02:08]} 12. a3 {[%clk 0:02:53]}  a5 {[%clk 0:02:05]} 13. Qc2 {[%clk 0:02:52]}  b6 {[%clk 0:02:02]} 14. Bf4 {[%clk 0:02:47]}  Ne6 {[%clk 0:02:02]} 15. Be3 {[%clk 0:02:41]}  Rc8 {[%clk 0:01:59]} 16. Qd2 {[%clk 0:02:40]}  Kh7 {[%clk 0:01:54]} 17. Ne4 {[%clk 0:02:38]}  f5 {[%clk 0:01:53]} 18. Nc3 {[%clk 0:02:38]}  Ned4 {[%clk 0:01:49]} 19. Qd1 {[%clk 0:02:30]}  e5 {[%clk 0:01:44]} 20. Bxd4 {[%clk 0:02:19]}  exd4 {[%clk 0:01:45]} 21. Nb1 {[%clk 0:02:14]}  f4 {[%clk 0:01:44]} 22. Nbd2 {[%clk 0:02:12]}  fxg3 {[%clk 0:01:44]} 23. fxg3 {[%clk 0:02:12]}  Qc7 {[%clk 0:01:43]} 24. Ne4 {[%clk 0:02:10]}  Bf5 {[%clk 0:01:42]} 25. Qe1 {[%clk 0:02:09]}  Rce8 {[%clk 0:01:41]} 26. Kh2 {[%clk 0:02:05]}  Bxe4 {[%clk 0:01:31]} 27. dxe4 {[%clk 0:02:04]}  Ne5 {[%clk 0:01:22]} 28. Nxe5 {[%clk 0:02:00]}  Bxe5 {[%clk 0:01:23]} 29. Rxf8 {[%clk 0:01:58]}  Rxf8 {[%clk 0:01:24]} 30. Bf3 {[%clk 0:01:57]}  Qe7 {[%clk 0:01:23]} 31. Kg2 {[%clk 0:01:56]}  Qe6 {[%clk 0:01:19]} 32. Qf2 {[%clk 0:01:46]}  Bd6 {[%clk 0:01:10]} 33. Rh1 {[%clk 0:01:46]}  h5 {[%clk 0:01:08]} 34. Qe1 {[%clk 0:01:45]}  Qe5 {[%clk 0:01:06]} 35. Rh3 {[%clk 0:01:40]}  c4 {[%clk 0:01:05]} 36. Qd2 {[%clk 0:01:37]}  Bc5 {[%clk 0:01:04]} 37. Qg5 {[%clk 0:01:36]}  Qxg5 {[%clk 0:01:03]} 38. hxg5 {[%clk 0:01:36]}  c3 {[%clk 0:01:03]} 39. bxc3 {[%clk 0:01:35]}  dxc3 {[%clk 0:01:04]} 40. g4 {[%clk 0:00:53]}  c2 {[%clk 0:00:58]} 41. gxh5 {[%clk 0:00:54]}  c1=Q {[%clk 0:00:56]} 42. hxg6+ {[%clk 0:00:54]}  Kxg6 {[%clk 0:00:55]} 43. Rh6+ {[%clk 0:00:54]}  Kg7 {[%clk 0:00:55]} 0-1


[Site "https://www.chess.com"]

[Event "Titled Tuesday Blitz November 29 Late 2022"]
[White "Freile Martin, Javier"]
[Black "Pinheiro, Iung Alicio de O."]
[WhiteFideId "3600165"]
[BlackFideId "2104350"]
[WhiteElo "2320"]
[BlackElo "2283"]
[Result "1-0"]
[Round "03"]
[TimeControl "180+1"]
[Date "2022.11.30"]
[WhiteClock "0:00:21"]
[BlackClock "0:00:01"]

1. c4 {[%clk 0:03:00]}  c5 {[%clk 0:02:56]} 2. Nc3 {[%clk 0:02:59]}  Nc6 {[%clk 0:02:54]} 3. Nf3 {[%clk 0:03:00]}  g6 {[%clk 0:02:53]} 4. e3 {[%clk 0:03:00]}  Nf6 {[%clk 0:02:53]} 5. d4 {[%clk 0:02:59]}  cxd4 {[%clk 0:02:54]} 6. exd4 {[%clk 0:02:58]}  d5 {[%clk 0:02:54]} 7. cxd5 {[%clk 0:02:58]}  Nxd5 {[%clk 0:02:53]} 8. Qb3 {[%clk 0:02:58]}  e6 {[%clk 0:02:53]} 9. Bg5 {[%clk 0:02:54]}  f6 {[%clk 0:02:48]} 10. Bd2 {[%clk 0:02:52]}  Bg7 {[%clk 0:02:45]} 11. Bc4 {[%clk 0:02:49]}  Na5 {[%clk 0:02:33]} 12. Bb5+ {[%clk 0:02:46]}  Nc6 {[%clk 0:02:26]} 13. O-O {[%clk 0:02:42]}  O-O {[%clk 0:02:26]} 14. Rfe1 {[%clk 0:02:41]}  Na5 {[%clk 0:02:12]} 15. Qd1 {[%clk 0:02:29]}  a6 {[%clk 0:02:11]} 16. Bd3 {[%clk 0:02:27]}  Bd7 {[%clk 0:01:47]} 17. Ne4 {[%clk 0:02:11]}  Re8 {[%clk 0:01:34]} 18. Nc5 {[%clk 0:02:08]}  Bc8 {[%clk 0:01:30]} 19. Rc1 {[%clk 0:01:57]}  Nc6 {[%clk 0:01:24]} 20. Qb3 {[%clk 0:01:51]}  Rb8 {[%clk 0:01:04]} 21. Bc4 {[%clk 0:01:42]}  Kh8 {[%clk 0:00:51]} 22. Bxd5 {[%clk 0:01:31]}  exd5 {[%clk 0:00:52]} 23. Rxe8+ {[%clk 0:01:30]}  Qxe8 {[%clk 0:00:53]} 24. Qxd5 {[%clk 0:01:28]}  Bf5 {[%clk 0:00:49]} 25. h3 {[%clk 0:01:26]}  Rd8 {[%clk 0:00:48]} 26. Qb3 {[%clk 0:01:25]}  Nxd4 {[%clk 0:00:42]} 27. Nxd4 {[%clk 0:01:24]}  Rxd4 {[%clk 0:00:42]} 28. Be3 {[%clk 0:01:20]}  Rd8 {[%clk 0:00:35]} 29. Qxb7 {[%clk 0:01:18]}  a5 {[%clk 0:00:32]} 30. a3 {[%clk 0:01:17]}  g5 {[%clk 0:00:31]} 31. b4 {[%clk 0:01:16]}  axb4 {[%clk 0:00:28]} 32. axb4 {[%clk 0:01:16]}  Rb8 {[%clk 0:00:29]} 33. Qf3 {[%clk 0:01:14]}  Bg6 {[%clk 0:00:24]} 34. Na6 {[%clk 0:01:05]}  Rc8 {[%clk 0:00:18]} 35. Rxc8 {[%clk 0:01:02]}  Qxc8 {[%clk 0:00:19]} 36. b5 {[%clk 0:01:02]}  h6 {[%clk 0:00:14]} 37. Qc6 {[%clk 0:00:58]}  Qf5 {[%clk 0:00:11]} 38. b6 {[%clk 0:00:53]}  Qb1+ {[%clk 0:00:11]} 39. Qc1 {[%clk 0:00:47]}  Qb5 {[%clk 0:00:10]} 40. Nc7 {[%clk 0:00:44]}  Qb3 {[%clk 0:00:10]} 41. Qc6 {[%clk 0:00:42]}  Qb1+ {[%clk 0:00:09]} 42. Kh2 {[%clk 0:00:40]}  Be4 {[%clk 0:00:10]} 43. Qe8+ {[%clk 0:00:36]}  Kh7 {[%clk 0:00:10]} 44. Ne6 {[%clk 0:00:31]}  Qb2 {[%clk 0:00:04]} 45. Nf8+ {[%clk 0:00:31]}  Bxf8 {[%clk 0:00:03]} 46. Qxe4+ {[%clk 0:00:31]}  Kg7 {[%clk 0:00:03]} 47. b7 {[%clk 0:00:31]}  Bd6+ {[%clk 0:00:03]} 48. g3 {[%clk 0:00:30]}  Qb3 {[%clk 0:00:02]} 49. Qc6 {[%clk 0:00:29]}  Be5 {[%clk 0:00:02]} 50. Qd7+ {[%clk 0:00:27]}  Kg6 {[%clk 0:00:02]} 51. Qc8 {[%clk 0:00:26]}  Qb2 {[%clk 0:00:01]} 52. Qc6 {[%clk 0:00:22]}  h5 {[%clk 0:00:01]} 53. Kg2 {[%clk 0:00:22]}  h4 {[%clk 0:00:01]} 54. g4 {[%clk 0:00:21]} 1-0


[Site "https://www.chess.com"]

[Event "Titled Tuesday Blitz November 29 Late 2022"]
[White "Gajwa Ankit"]
[Black "Annaberdiyev, Babageldi"]
[WhiteFideId "5077834"]
[BlackFideId "14000385"]
[WhiteElo "2145"]
[BlackElo "2332"]
[Result "0-1"]
[Round "03"]
[TimeControl "180+1"]
[Date "2022.11.30"]
[WhiteClock "0:00:52"]
[BlackClock "0:01:23"]

1. e4 {[%clk 0:03:00]}  e6 {[%clk 0:03:00]} 2. d4 {[%clk 0:03:00]}  d5 {[%clk 0:03:00]} 3. Nc3 {[%clk 0:03:01]}  Nf6 {[%clk 0:03:00]} 4. e5 {[%clk 0:02:51]}  Nfd7 {[%clk 0:02:57]} 5. f4 {[%clk 0:02:51]}  c5 {[%clk 0:02:56]} 6. Nf3 {[%clk 0:02:52]}  Nc6 {[%clk 0:02:55]} 7. Be3 {[%clk 0:02:51]}  a6 {[%clk 0:02:52]} 8. Qd2 {[%clk 0:02:51]}  b5 {[%clk 0:02:50]} 9. dxc5 {[%clk 0:02:49]}  Bxc5 {[%clk 0:02:50]} 10. Bd3 {[%clk 0:02:49]}  Qb6 {[%clk 0:02:41]} 11. Bf2 {[%clk 0:02:40]}  Bb7 {[%clk 0:02:37]} 12. O-O {[%clk 0:02:30]}  h6 {[%clk 0:02:32]} 13. Rae1 {[%clk 0:02:25]}  O-O-O {[%clk 0:02:23]} 14. Kh1 {[%clk 0:02:16]}  Bxf2 {[%clk 0:02:18]} 15. Rxf2 {[%clk 0:02:10]}  g5 {[%clk 0:02:13]} 16. Rfe2 {[%clk 0:01:51]}  g4 {[%clk 0:02:11]} 17. Nh4 {[%clk 0:01:42]}  Nc5 {[%clk 0:02:11]} 18. a3 {[%clk 0:01:35]}  Kb8 {[%clk 0:02:08]} 19. f5 {[%clk 0:01:25]}  g3 {[%clk 0:02:03]} 20. hxg3 {[%clk 0:01:24]}  Rhg8 {[%clk 0:02:01]} 21. Qf4 {[%clk 0:01:24]}  Rg5 {[%clk 0:01:54]} 22. Nf3 {[%clk 0:01:19]}  Rh5+ {[%clk 0:01:50]} 23. Nh4 {[%clk 0:01:18]}  Rg5 {[%clk 0:01:46]} 24. b4 {[%clk 0:01:14]}  Nxd3 {[%clk 0:01:42]} 25. cxd3 {[%clk 0:01:13]}  Nd4 {[%clk 0:01:42]} 26. Rf2 {[%clk 0:01:12]}  Nxf5 {[%clk 0:01:40]} 27. Rf3 {[%clk 0:01:02]}  Rdg8 {[%clk 0:01:38]} 28. Nxf5 {[%clk 0:01:00]}  Rxf5 {[%clk 0:01:38]} 29. Qxh6 {[%clk 0:01:01]}  Rxf3 {[%clk 0:01:33]} 30. gxf3 {[%clk 0:01:00]}  Qf2 {[%clk 0:01:33]} 31. Rg1 {[%clk 0:00:57]}  Qxf3+ {[%clk 0:01:33]} 32. Kh2 {[%clk 0:00:56]}  d4 {[%clk 0:01:30]} 33. Ne4 {[%clk 0:00:55]}  Bxe4 {[%clk 0:01:31]} 34. dxe4 {[%clk 0:00:55]}  Qxe4 {[%clk 0:01:31]} 35. Rf1 {[%clk 0:00:52]}  Qe2+ {[%clk 0:01:23]} 0-1


[Site "https://www.chess.com"]

[Event "Titled Tuesday Blitz November 29 Late 2022"]
[White "Gatterer, Florian"]
[Black "Koellner, Ruben Gideon"]
[WhiteFideId "811688"]
[BlackFideId "12993093"]
[WhiteElo "2218"]
[BlackElo "2303"]
[Result "0-1"]
[Round "03"]
[TimeControl "180+1"]
[Date "2022.11.30"]
[WhiteClock "0:00:12"]
[BlackClock "0:00:33"]

1. c4 {[%clk 0:03:00]}  d6 {[%clk 0:03:00]} 2. Nc3 {[%clk 0:02:56]}  Nf6 {[%clk 0:03:00]} 3. g3 {[%clk 0:02:54]}  g6 {[%clk 0:03:00]} 4. Bg2 {[%clk 0:02:54]}  Bg7 {[%clk 0:03:00]} 5. Nf3 {[%clk 0:02:54]}  O-O {[%clk 0:03:01]} 6. b3 {[%clk 0:02:54]}  Nbd7 {[%clk 0:03:02]} 7. d4 {[%clk 0:02:51]}  e5 {[%clk 0:03:02]} 8. Bb2 {[%clk 0:02:51]}  Re8 {[%clk 0:03:01]} 9. dxe5 {[%clk 0:02:50]}  Nxe5 {[%clk 0:03:02]} 10. Nxe5 {[%clk 0:02:49]}  dxe5 {[%clk 0:03:03]} 11. Qxd8 {[%clk 0:02:46]}  Rxd8 {[%clk 0:03:03]} 12. Nd5 {[%clk 0:02:29]}  Nxd5 {[%clk 0:03:03]} 13. cxd5 {[%clk 0:02:29]}  f6 {[%clk 0:02:32]} 14. Rc1 {[%clk 0:02:27]}  Rd7 {[%clk 0:02:32]} 15. e4 {[%clk 0:02:13]}  Bf8 {[%clk 0:02:32]} 16. O-O {[%clk 0:02:08]}  Bd6 {[%clk 0:02:32]} 17. f4 {[%clk 0:02:08]}  Rf7 {[%clk 0:02:28]} 18. fxe5 {[%clk 0:01:49]}  fxe5 {[%clk 0:02:29]} 19. Rxf7 {[%clk 0:01:49]}  Kxf7 {[%clk 0:02:29]} 20. Kf2 {[%clk 0:01:44]}  Bd7 {[%clk 0:02:26]} 21. a4 {[%clk 0:01:30]}  Rf8 {[%clk 0:02:25]} 22. Ke2 {[%clk 0:01:27]}  Ke7 {[%clk 0:02:18]} 23. Bf3 {[%clk 0:01:27]}  b5 {[%clk 0:02:05]} 24. a5 {[%clk 0:01:16]}  b4 {[%clk 0:01:51]} 25. Ke3 {[%clk 0:01:12]}  Rb8 {[%clk 0:01:43]} 26. h4 {[%clk 0:01:05]}  Rb5 {[%clk 0:01:42]} 27. Ra1 {[%clk 0:01:05]}  Rc5 {[%clk 0:01:33]} 28. Kd2 {[%clk 0:00:59]}  c6 {[%clk 0:01:12]} 29. dxc6 {[%clk 0:00:53]}  Bxc6 {[%clk 0:01:12]} 30. Rc1 {[%clk 0:00:27]}  Rxc1 {[%clk 0:01:09]} 31. Bxc1 {[%clk 0:00:28]}  Bc5 {[%clk 0:01:07]} 32. Bb2 {[%clk 0:00:23]}  Kd6 {[%clk 0:01:06]} 33. Bg2 {[%clk 0:00:20]}  Bb5 {[%clk 0:01:03]} 34. Bf3 {[%clk 0:00:19]}  Bd4 {[%clk 0:01:01]} 35. Bxd4 {[%clk 0:00:16]}  exd4 {[%clk 0:01:02]} 36. Be2 {[%clk 0:00:16]}  Bxe2 {[%clk 0:00:27]} 37. Kxe2 {[%clk 0:00:17]}  Ke5 {[%clk 0:00:28]} 38. Kd3 {[%clk 0:00:16]}  a6 {[%clk 0:00:28]} 39. g4 {[%clk 0:00:15]}  h6 {[%clk 0:00:28]} 40. h5 {[%clk 0:00:06]}  g5 {[%clk 0:00:28]} 41. Kc4 {[%clk 0:00:04]}  Kxe4 {[%clk 0:00:29]} 42. Kxb4 {[%clk 0:00:05]}  d3 {[%clk 0:00:29]} 43. Kc3 {[%clk 0:00:05]}  Ke3 {[%clk 0:00:29]} 44. b4 {[%clk 0:00:05]}  d2 {[%clk 0:00:30]} 45. b5 {[%clk 0:00:06]}  axb5 {[%clk 0:00:30]} 46. a6 {[%clk 0:00:06]}  d1=Q {[%clk 0:00:30]} 47. a7 {[%clk 0:00:07]}  Qa4 {[%clk 0:00:29]} 48. a8=Q {[%clk 0:00:06]}  Qxa8 {[%clk 0:00:30]} 49. Kb4 {[%clk 0:00:07]}  Qe4+ {[%clk 0:00:30]} 50. Kxb5 {[%clk 0:00:07]}  Qxg4 {[%clk 0:00:31]} 51. Kc5 {[%clk 0:00:08]}  Qxh5 {[%clk 0:00:31]} 52. Kd6 {[%clk 0:00:08]}  Qf3 {[%clk 0:00:31]} 53. Ke7 {[%clk 0:00:09]}  g4 {[%clk 0:00:32]} 54. Ke8 {[%clk 0:00:10]}  g3 {[%clk 0:00:33]} 55. Ke7 {[%clk 0:00:10]}  g2 {[%clk 0:00:33]} 56. Kd6 {[%clk 0:00:11]}  g1=Q {[%clk 0:00:34]} 57. Ke5 {[%clk 0:00:12]}  Qg5+ {[%clk 0:00:33]} 0-1


[Site "https://www.chess.com"]

[Event "Titled Tuesday Blitz November 29 Late 2022"]
[White "Girel, Joseph"]
[Black "Korobov, Anton"]
[WhiteFideId "36033561"]
[BlackFideId "14105730"]
[WhiteElo "2769"]
[BlackElo "3010"]
[Result "0-1"]
[Round "03"]
[TimeControl "180+1"]
[Date "2022.11.30"]
[WhiteClock "0:01:31"]
[BlackClock "0:01:31"]

1. d4 {[%clk 0:02:54]}  Nf6 {[%clk 0:02:59]} 2. c4 {[%clk 0:02:53]}  c6 {[%clk 0:02:59]} 3. Nf3 {[%clk 0:02:53]}  d5 {[%clk 0:02:59]} 4. cxd5 {[%clk 0:02:54]}  cxd5 {[%clk 0:02:59]} 5. Nc3 {[%clk 0:02:54]}  Nc6 {[%clk 0:02:59]} 6. Bf4 {[%clk 0:02:54]}  a6 {[%clk 0:02:59]} 7. Rc1 {[%clk 0:02:53]}  Bf5 {[%clk 0:02:55]} 8. e3 {[%clk 0:02:52]}  e6 {[%clk 0:02:53]} 9. Qb3 {[%clk 0:02:51]}  Ra7 {[%clk 0:02:44]} 10. Be2 {[%clk 0:02:50]}  Bd6 {[%clk 0:02:43]} 11. Bxd6 {[%clk 0:02:48]}  Qxd6 {[%clk 0:02:44]} 12. O-O {[%clk 0:02:48]}  O-O {[%clk 0:02:43]} 13. Na4 {[%clk 0:02:47]}  Ne4 {[%clk 0:02:31]} 14. Nc5 {[%clk 0:02:45]}  Na5 {[%clk 0:02:22]} 15. Qa4 {[%clk 0:02:19]}  b6 {[%clk 0:02:22]} 16. Nxe4 {[%clk 0:02:19]}  Bxe4 {[%clk 0:02:18]} 17. Ne5 {[%clk 0:02:06]}  Rc7 {[%clk 0:01:56]} 18. b4 {[%clk 0:02:00]}  Nc4 {[%clk 0:01:48]} 19. Qxa6 {[%clk 0:01:52]}  Nxe5 {[%clk 0:01:47]} 20. dxe5 {[%clk 0:01:53]}  Qxe5 {[%clk 0:01:47]} 21. Qxb6 {[%clk 0:01:52]}  Rxc1 {[%clk 0:01:39]} 22. Rxc1 {[%clk 0:01:53]}  Qb2 {[%clk 0:01:39]} 23. Re1 {[%clk 0:01:53]}  Qd2 {[%clk 0:01:39]} 24. Kf1 {[%clk 0:01:41]}  Bxg2+ {[%clk 0:01:37]} 25. Kxg2 {[%clk 0:01:42]}  Qxe1 {[%clk 0:01:38]} 26. Qb5 {[%clk 0:01:40]}  g6 {[%clk 0:01:33]} 27. a4 {[%clk 0:01:39]}  Rc8 {[%clk 0:01:33]} 28. Qd3 {[%clk 0:01:31]}  Qxb4 {[%clk 0:01:31]} 0-1


[Site "https://www.chess.com"]

[Event "Titled Tuesday Blitz November 29 Late 2022"]
[White "Graif, William"]
[Black "Fernandez De La Vara, Arnaldo"]
[WhiteFideId "2609835"]
[BlackFideId "3518388"]
[WhiteElo "2205"]
[BlackElo "2387"]
[Result "1-0"]
[Round "03"]
[TimeControl "180+1"]
[Date "2022.11.30"]
[WhiteClock "0:00:08"]
[BlackClock "0:00:07"]

1. e4 {[%clk 0:02:49]}  c5 {[%clk 0:03:00]} 2. Nc3 {[%clk 0:02:48]}  e6 {[%clk 0:03:01]} 3. Nge2 {[%clk 0:02:46]}  Nf6 {[%clk 0:03:00]} 4. g3 {[%clk 0:02:30]}  d5 {[%clk 0:03:00]} 5. exd5 {[%clk 0:02:24]}  exd5 {[%clk 0:03:00]} 6. d4 {[%clk 0:02:23]}  Nc6 {[%clk 0:03:00]} 7. Bg2 {[%clk 0:02:16]}  Bg4 {[%clk 0:03:00]} 8. h3 {[%clk 0:02:04]}  Bh5 {[%clk 0:02:56]} 9. g4 {[%clk 0:01:44]}  Bg6 {[%clk 0:02:56]} 10. O-O {[%clk 0:01:37]}  h6 {[%clk 0:02:22]} 11. Be3 {[%clk 0:01:16]}  cxd4 {[%clk 0:02:14]} 12. Nxd4 {[%clk 0:01:12]}  Bb4 {[%clk 0:01:31]} 13. Nb3 {[%clk 0:00:43]}  Bxc3 {[%clk 0:01:13]} 14. bxc3 {[%clk 0:00:44]}  O-O {[%clk 0:01:13]} 15. Rb1 {[%clk 0:00:38]}  Ne4 {[%clk 0:00:57]} 16. Qe1 {[%clk 0:00:37]}  Re8 {[%clk 0:00:56]} 17. f3 {[%clk 0:00:29]}  Nd6 {[%clk 0:00:54]} 18. Qf2 {[%clk 0:00:22]}  Nc4 {[%clk 0:00:53]} 19. Bd4 {[%clk 0:00:19]}  Rc8 {[%clk 0:00:47]} 20. Rfe1 {[%clk 0:00:17]}  Qc7 {[%clk 0:00:30]} 21. f4 {[%clk 0:00:17]}  Be4 {[%clk 0:00:27]} 22. Bxe4 {[%clk 0:00:16]}  dxe4 {[%clk 0:00:25]} 23. Nc5 {[%clk 0:00:16]}  e3 {[%clk 0:00:19]} 24. Bxe3 {[%clk 0:00:14]}  b6 {[%clk 0:00:19]} 25. Nd3 {[%clk 0:00:13]}  Re4 {[%clk 0:00:14]} 26. Bd4 {[%clk 0:00:11]}  Rce8 {[%clk 0:00:13]} 27. Rxe4 {[%clk 0:00:11]}  Rxe4 {[%clk 0:00:14]} 28. Re1 {[%clk 0:00:12]}  Qe7 {[%clk 0:00:14]} 29. Rxe4 {[%clk 0:00:11]}  Qxe4 {[%clk 0:00:15]} 30. Qg2 {[%clk 0:00:09]}  Qe6 {[%clk 0:00:07]} 31. f5 {[%clk 0:00:09]}  Qd6 {[%clk 0:00:07]} 32. Qh2 {[%clk 0:00:08]} 1-0


[Site "https://www.chess.com"]